bitfinex-derivatives/quotes_SOLF0:USTF0_20250520
["timestamp","ask_amount","ask_price","bid_price","bid_amount"]
[1747701533703,5.9406,168.28,168.23,5.9422]
[1747701534010,0.04353161,168.27,168.24,0.04421637]
[1747701534208,0.04170175,168.27,168.24,0.04421637]
[1747701536109,5.9415,168.25,168.24,0.04421637]
[1747701536516,0.04170175,168.27,168.24,0.04421637]
[1747701537213,5.9415,168.25,168.24,0.04421637]
[1747701537806,8.01920175,168.27,168.24,0.04421637]
[1747701538016,2.07820175,168.27,168.24,0.04421637]
[1747701538314,2.07820175,168.27,168.24,5.98571637]
[1747701538508,2.07820175,168.27,168.24,0.04421637]
[1747701538814,5.9411,168.26,168.24,0.04421637]
[1747701539114,2.07820175,168.27,168.24,0.04421637]
[1747701539321,2.07820175,168.27,168.24,5.98591637]
[1747701539512,0.04170175,168.27,168.24,0.04421637]
[1747701541415,0.04170175,168.27,168.24,5.98581637]
[1747701541609,0.04170175,168.27,168.24,0.04421637]
[1747701542914,0.04170175,168.27,168.25,74.24]
[1747701543312,0.04170175,168.27,168.26,5.9411]
[1747701543719,0.04170175,168.27,168.25,74.24]
[1747701544125,2.0486,168.35,168.25,74.24]
[1747701544419,2.0486,168.35,168.28,10.21532146]
[1747701544623,3.9114,168.39,168.28,10.21532146]
[1747701545020,1.928,168.39,168.37,5.9371]
[1747701545317,2.0486,168.43,168.36,0.04429986]
[1747701545318,0.03980808,168.4,168.36,0.04429986]
[1747701545714,0.03980808,168.4,168.39,5.9365]
[1747701546514,0.03980808,168.4,168.37,5.9372]
[1747701546711,0.03980808,168.4,168.36,0.04429986]
[1747701547113,1.9466,168.47,168.36,10.25962132]
[1747701547420,1.9466,168.47,168.36,10.21532146]
[1747701547621,7.8804,168.47,168.42,5.9352]
[1747701547807,1.9466,168.47,168.4,74.22]
[1747701548011,1.9466,168.47,168.4,84.43532146]
[1747701548215,0.04500539,168.45,168.42,0.04510608]
[1747701548721,0.04500539,168.45,168.44,5.9348]
[1747701549310,0.04500539,168.45,168.42,0.04510608]
[1747701549514,0.04500539,168.45,168.42,74.26510608]
[1747701550221,0.04500539,168.45,168.42,0.04510608]
[1747701551610,5.97970539,168.45,168.42,0.04510608]
[1747701552012,74.2,168.59,168.42,0.04510608]
[1747701552216,74.2,168.59,168.39,74.2]
[1747701552217,80.2436,168.59,168.45,10.21532146]
[1747701552417,80.2436,168.59,168.46,74.2]
[1747701552613,6.0436,168.59,168.46,74.2]
[1747701553016,5.97430126,168.54,168.51,0.0452623]
[1747701553421,0.04300126,168.54,168.51,0.0452623]
[1747701553614,5.9316,168.53,168.51,0.0452623]
[1747701553920,0.04300126,168.54,168.51,0.0452623]
[1747701554123,0.04300126,168.54,168.47,74.18]
[1747701555018,0.04300126,168.54,168.49,0.03760701]
[1747701555422,5.9326,168.51,168.49,0.03760701]
[1747701555725,0.04300126,168.54,168.47,74.18]
[1747701556624,5.97460126,168.54,168.49,5.933]
[1747701556824,0.04300126,168.54,168.5,0.04487889]
[1747701557222,5.9322,168.52,168.5,0.04487889]
[1747701557827,0.04300126,168.54,168.5,0.04487889]
[1747701558418,5.97450126,168.54,168.5,5.97727889]
[1747701558622,0.04300126,168.54,168.39,74.16]
[1747701558824,74.16,168.56,168.39,74.16]
[1747701559022,74.16,168.56,168.42,5.9352]
[1747701559222,74.16,168.56,168.39,74.16]
[1747701559622,0.03776653,168.49,168.46,0.04134079]
[1747701559918,0.04493218,168.49,168.46,0.04134079]
[1747701560127,5.9334,168.48,168.46,0.04134079]
[1747701560729,5.97803218,168.49,168.46,0.04134079]
[1747701561123,0.04493218,168.49,168.46,0.04134079]
[1747701561319,5.9337,168.47,168.46,0.04134079]
[1747701561824,5.9346,168.45,168.38,10.21532146]
[1747701562030,1.9942,168.48,168.39,74.16]
[1747701562328,5.9343,168.46,168.39,74.16]
[1747701562623,0.03800941,168.44,168.41,0.03902917]
[1747701563328,0.03800941,168.44,168.43,5.9351]
[1747701564222,3.9799,168.54,168.45,5.9343]
[1747701564828,5.9331,168.49,168.44,80.0947]
[1747701565131,3.9799,168.54,168.44,74.16]
[1747701565331,0.04247053,168.48,168.45,0.04137389]
[1747701565534,5.97607053,168.48,168.45,0.04137389]
[1747701565734,0.04247053,168.48,168.45,0.04137389]
[1747701567125,0.04247053,168.48,168.46,5.9338]
[1747701567321,0.04247053,168.48,168.45,0.04137389]
[1747701567636,0.04247053,168.48,168.47,5.9337]
[1747701567834,0.04247053,168.48,168.45,0.04137389]
[1747701570035,0.04247053,168.48,168.46,5.9341]
[1747701571030,0.04247053,168.48,168.47,5.9337]
[1747701576941,0.04247053,168.48,168.45,0.04137389]
[1747701577837,0.04247053,168.48,168.45,73.98137389]
[1747701578139,0.04247053,168.48,168.45,79.91577389]
[1747701578337,0.04247053,168.48,168.45,73.98137389]
[1747701578538,5.97587053,168.48,168.45,79.91567389]
[1747701578834,0.04247053,168.48,168.45,73.98137389]
[1747701579038,5.9338,168.47,168.45,73.98137389]
[1747701579931,5.9341,168.46,168.45,0.04137389]
[1747701580127,0.04247053,168.48,168.37,513.4]
[1747701580340,3.9343,168.45,168.37,587.34]
[1747701580541,5.9355,168.42,168.38,5.9368]
[1747701581041,0.04216189,168.42,168.39,5.9364]
[1747701581238,0.04216189,168.42,168.38,0.03959764]
[1747701581939,0.04216189,168.42,168.35,2.1929272]
[1747701582133,5.9373,168.37,168.35,2.1929272]
[1747701582333,73.94,168.43,168.35,2.1929272]
[1747701582734,5.9369,168.38,168.35,8.1305272]
[1747701583132,5.97758888,168.38,168.35,8.17416573]
[1747701583334,5.97758888,168.38,168.35,2.23656573]
[1747701583335,5.9372,168.37,168.35,2.23656573]
[1747701583537,0.04068888,168.38,168.35,2.23656573]
[1747701584643,0.04068888,168.38,168.35,0.04363853]
[1747701585244,5.9375,168.37,168.35,0.04363853]
[1747701585646,0.04068888,168.38,168.35,0.04363853]
[1747701585841,5.9372,168.37,168.35,0.04363853]
[1747701586441,0.04068888,168.38,168.35,0.04363853]
[1747701587742,5.9375,168.37,168.35,0.04363853]
[1747701588145,0.04068888,168.38,168.35,0.04363853]
[1747701589444,0.04068888,168.38,168.37,5.9372]
[1747701590443,0.04068888,168.38,168.18,10.17073593]
[1747701590444,90.13142481,168.38,168.18,10.17073593]
[1747701590750,90.13142481,168.38,168.19,2.092]
[1747701590751,10.17073593,168.34,168.19,2.092]
[1747701590951,5.9416,168.25,168.2,2.05597118]
[1747701591246,1.9566,168.33,168.2,2.05597118]
[1747701591556,5.9429,168.21,168.2,2.05597118]
[1747701593151,5.98798588,168.22,168.2,2.05597118]
[1747701593355,0.04528588,168.22,168.2,2.05597118]
[1747701594142,0.04528588,168.22,168.21,5.9429]
[1747701594844,0.04528588,168.22,168.19,0.04520711]
[1747701595555,0.04528588,168.22,168.21,5.9429]
[1747701595747,0.04528588,168.22,168.21,79.7029]
[1747701597151,8.588e-05,168.22,168.21,79.7029]
[1747701598950,8.588e-05,168.22,168.2,5.9432]
[1747701599354,8.588e-05,168.22,168.19,5.98870711]
[1747701600056,8.588e-05,168.22,168.19,0.04520711]
[1747701600750,8.588e-05,168.22,168.21,5.9429]
[1747701601647,8.588e-05,168.22,168.2,5.9431]
[1747701601849,8.588e-05,168.22,168.19,0.04520711]
[1747701602048,5.94258588,168.22,168.19,0.04520711]
[1747701602251,8.588e-05,168.22,168.19,0.04520711]
[1747701603762,8.588e-05,168.22,168.21,5.9429]
[1747701603952,8.588e-05,168.22,168.19,0.04520711]
[1747701604465,8.588e-05,168.22,168.19,5.98850711]
[1747701604764,8.588e-05,168.22,168.19,0.04520711]
[1747701605664,8.588e-05,168.22,168.16,73.78]
[1747701605865,8.588e-05,168.22,168.14,5.9452]
[1747701606164,3.96888588,168.22,168.14,5.9452]
[1747701606354,3.96888588,168.22,168.09,513.12]
[1747701606559,0.04331355,168.17,168.14,0.04171128]
[1747701609568,0.04331355,168.17,168.16,5.9447]
[1747701610067,0.04331355,168.17,168.15,5.9449]
[1747701610365,0.04331355,168.17,168.14,0.04171128]
[1747701611469,5.98771355,168.17,168.14,0.04171128]
[1747701611658,0.04331355,168.17,168.14,0.04171128]
[1747701613066,0.04331355,168.17,168.14,73.86171128]
[1747701613368,0.04331355,168.17,168.16,5.9447]
[1747701616370,0.04331355,168.17,168.15,5.945]
[1747701616964,0.04331355,168.17,168.14,0.04171128]
[1747701617667,5.98781355,168.17,168.14,0.04171128]
[1747701618074,0.04331355,168.17,168.14,0.04171128]
[1747701618269,5.9454,168.14,168.11,2.795]
[1747701618479,5.9454,168.14,168.07,73.82]
[1747701618769,5.9454,168.14,168.1,5.9465]
[1747701618974,5.9457,168.13,168.1,5.9465]
[1747701619170,0.04516789,168.13,168.1,0.03923809]
[1747701620871,0.04516789,168.13,168.1,5.98593809]
[1747701621267,0.04516789,168.13,168.1,0.03923809]
[1747701621674,0.04516789,168.13,168.11,5.9464]
[1747701622367,0.04516789,168.13,168.1,5.98593809]
[1747701622575,5.99096789,168.13,168.1,5.98593809]
[1747701622778,5.99096789,168.13,168.1,0.03923809]
[1747701623166,0.04516789,168.13,168.1,0.03923809]
[1747701624879,0.04516789,168.13,168.1,5.98563809]
[1747701625178,0.04516789,168.13,168.1,0.03923809]
[1747701625678,5.9464,168.11,168.1,0.03923809]
[1747701626179,5.9462,168.12,168.1,0.03923809]
[1747701626864,5.9464,168.11,168.1,0.03923809]
[1747701627471,0.04516789,168.13,168.1,0.03923809]
[1747701627472,5.9461,168.12,168.1,0.03923809]
[1747701628374,5.9464,168.11,168.1,0.03923809]
[1747701629976,5.9481,168.07,168.01,513.8]
[1747701630276,75.5704,168.14,168.03,5.9491]
[1747701630485,75.5704,168.14,168.0,75.78417507]
[1747701630779,5.9477,168.08,168.04,5.9487]
[1747701630978,5.98738242,168.08,168.04,0.03858397]
[1747701631484,5.98738242,168.08,168.05,5.9485]
[1747701632685,0.03968242,168.08,168.06,5.948]
[1747701632988,0.03968242,168.08,168.06,5.9481]
[1747701633284,0.03968242,168.08,168.04,0.03858397]
[1747701634687,0.03968242,168.08,168.04,5.98718397]
[1747701634982,73.59968242,168.08,168.04,0.03858397]
[1747701635190,73.59968242,168.08,167.97,2.22417507]
[1747701635384,1.9601,168.07,167.97,2.22417507]
[1747701635776,1.9601,168.07,168.01,5.9497]
[1747701636281,5.9489,168.05,168.02,0.03840314]
[1747701636481,0.04283345,168.06,168.02,0.03840314]
[1747701636890,5.9493,168.03,168.02,0.03840314]
[1747701637090,0.04283345,168.06,168.02,0.03840314]
[1747701638484,5.9493,168.03,168.02,0.03840314]
[1747701639099,3.9433,168.05,167.97,73.58]
[1747701639285,3.9433,168.05,167.96,5.9517]
[1747701639792,5.951,167.99,167.95,5.9518]
[1747701640091,5.9935092,167.99,167.95,5.99656427]
[1747701640790,0.0425092,167.99,167.95,0.04476427]
[1747701641093,0.0425092,167.99,167.96,5.9515]
[1747701641885,0.0425092,167.99,167.97,5.9511]
[1747701642388,0.0425092,167.99,167.95,0.04476427]
[1747701643693,0.0425092,167.99,167.97,5.9511]
[1747701644697,0.0425092,167.99,167.95,0.04476427]
[1747701644887,0.0425092,167.99,167.98,5.951]
[1747701645489,1.9881,168.06,168.02,5.9494]
[1747701645695,73.6,168.07,167.99,73.6]
[1747701645893,6.0676,168.1,167.99,73.6]
[1747701646193,6.0676,168.1,168.0,1.9254]
[1747701646698,5.99083578,168.07,168.03,0.04557622]
[1747701647295,0.04273578,168.07,168.03,0.04557622]
[1747701648496,0.04273578,168.07,168.06,5.9482]
[1747701650002,0.04273578,168.07,168.03,0.04557622]
[1747701650694,5.9482,168.06,168.03,5.99457622]
[1747701650894,0.04273578,168.07,168.03,0.04557622]
[1747701651205,0.04273578,168.07,168.05,5.9484]
[1747701652413,0.04273578,168.07,168.04,5.9488]
[1747701652821,0.04273578,168.07,168.03,0.04557622]
[1747701653508,0.04273578,168.07,168.06,5.9482]
[1747701655707,75.4892,168.15,168.09,5.9468]
[1747701656114,5.9459,168.13,168.09,5.9468]
[1747701656318,5.9459,168.13,168.1,5.9467]
[1747701656520,75.4892,168.15,168.04,75.5752]
[1747701656721,0.04372837,168.11,168.08,0.0404187]
[1747701657403,0.04372837,168.11,168.08,5.9876187]
[1747701657813,0.04372837,168.11,168.08,0.0404187]
[1747701658214,0.04372837,168.11,168.08,5.9876187]
[1747701658620,0.04372837,168.11,168.08,0.0404187]
[1747701659218,0.04372837,168.11,168.08,5.9878187]
[1747701660118,0.04372837,168.11,168.09,5.9471]
[1747701660419,0.04372837,168.11,168.09,73.24]
[1747701661419,0.04372837,168.11,168.08,0.0404187]
[1747701662110,5.9469,168.1,168.08,0.0404187]
[1747701662313,0.04372837,168.11,168.08,0.0404187]
[1747701662519,5.9471,168.09,168.08,0.0404187]
[1747701662719,0.04372837,168.11,168.02,8.17806862]
[1747701663120,5.9486,168.05,168.02,8.17806862]
[1747701663619,0.03865802,168.05,168.02,2.27020903]
[1747701664021,0.03865802,168.05,168.04,5.9489]
[1747701664217,0.03865802,168.05,168.02,2.27020903]
[1747701664910,5.9493,168.03,168.02,0.04164041]
[1747701665122,0.03865802,168.05,168.02,0.04164041]
[1747701665524,0.03865802,168.05,168.02,5.99094041]
[1747701665726,0.03865802,168.05,167.98,2.22856862]
[1747701666729,0.03865802,168.05,168.0,0.04555961]
[1747701667617,5.95,168.01,168.0,0.04555961]
[1747701668815,5.9497,168.02,168.0,0.04555961]
[1747701669012,73.24,168.03,168.0,0.04555961]
[1747701669526,5.95,168.01,168.0,0.04555961]
[1747701671627,79.1895,168.03,168.0,0.04555961]
[1747701671827,73.24,168.03,168.0,0.04555961]
[1747701672024,73.24,168.03,168.0,5.99565961]
[1747701672433,2.0695,168.04,168.0,0.04555961]
[1747701672732,0.03865802,168.05,168.0,0.04555961]
[1747701673627,0.03865802,168.05,168.01,73.26]
[1747701673931,0.03865802,168.05,168.04,5.9489]
[1747701675633,0.03865802,168.05,168.01,77.28]
[1747701675634,73.26,168.16,168.01,87.48661055]
[1747701676028,79.3911,168.2,168.15,5.9449]
[1747701676229,79.3911,168.2,168.1,73.26]
[1747701676432,75.3085,168.2,168.11,1.9227]
[1747701676734,0.04435469,168.17,168.13,0.04026371]
[1747701677739,0.04435469,168.17,168.13,5.98566371]
[1747701678037,0.04435469,168.17,168.13,0.04026371]
[1747701678229,0.04435469,168.17,168.16,5.9447]
[1747701680038,0.04435469,168.17,168.13,0.04026371]
[1747701680432,5.945,168.16,168.13,0.04026371]
[1747701681338,5.9451,168.15,168.13,0.04026371]
[1747701682036,5.9454,168.14,168.13,0.04026371]
[1747701684638,5.9469,168.1,168.07,73.24]
[1747701684842,5.9386,168.16,168.07,73.24]
[1747701685635,0.04318266,168.13,168.1,0.04405769]
[1747701685838,72.94318266,168.13,168.03,72.9]
[1747701686136,5.9489,168.05,168.02,2.22856862]
[1747701686327,83.10661055,168.13,168.02,2.22856862]
[1747701686728,0.04005626,168.09,168.06,0.04310967]
[1747701686930,72.9,168.08,168.02,2.22856862]
[1747701687142,2.0848,168.07,167.99,72.9]
[1747701687334,5.9497,168.02,167.99,72.9]
[1747701687843,5.98978836,168.02,167.99,72.93357385]
[1747701688443,0.04008836,168.02,167.99,72.93357385]
[1747701689442,0.04008836,168.02,168.01,5.95]
[1747701689643,2.043,168.12,168.0,1.9818]
[1747701689843,2.043,168.12,168.0,4.011]
[1747701690037,2.043,168.12,168.01,2.0431]
[1747701690538,0.03896257,168.08,168.06,5.9481]
[1747701691348,0.03896257,168.08,168.07,5.9478]
[1747701691747,0.03896257,168.08,168.05,0.04189348]
[1747701692651,5.98666257,168.08,168.05,0.04189348]
[1747701692950,0.03896257,168.08,168.05,0.04189348]
[1747701693443,5.9479,168.07,168.05,0.04189348]
[1747701693752,0.03896257,168.08,168.05,0.04189348]
[1747701694554,5.98676257,168.08,168.05,0.04189348]
[1747701695053,0.03896257,168.08,168.05,0.04189348]
[1747701695240,5.9481,168.07,168.05,0.04189348]
[1747701695953,5.98656257,168.08,168.05,0.04189348]
[1747701696452,0.03896257,168.08,168.05,0.04189348]
[1747701697653,5.9482,168.06,168.05,0.04189348]
[1747701698652,0.03896257,168.08,168.05,0.04189348]
[1747701699362,0.03896257,168.08,168.05,5.99009348]
[1747701699557,0.03896257,168.08,168.05,0.04189348]
[1747701700457,0.03896257,168.08,168.07,5.9478]
[1747701701457,72.92,168.16,168.06,76.9728]
[1747701701663,1.967,168.2,168.06,78.9643]
[1747701701856,5.9443,168.17,168.06,78.9643]
[1747701702053,1.967,168.2,168.12,5.9458]
[1747701702464,0.0376699,168.18,168.14,0.04054217]
[1747701702960,0.0376699,168.18,168.15,5.9449]
[1747701703160,0.0376699,168.18,168.14,0.04054217]
[1747701704264,5.9818699,168.18,168.14,5.98564217]
[1747701704462,0.0376699,168.18,168.14,5.98564217]
[1747701705563,5.9444,168.17,168.14,5.98564217]
[1747701706166,0.0376699,168.18,168.14,0.04054217]
[1747701706662,5.9444,168.17,168.14,5.98574217]
[1747701706865,0.0376699,168.18,168.14,0.04054217]
[1747701707452,5.9449,168.16,168.14,0.04054217]
[1747701707658,0.0376699,168.18,168.14,0.04054217]
[1747701708763,5.9819699,168.18,168.14,5.98564217]
[1747701709267,0.0376699,168.18,168.14,0.04054217]
[1747701711060,5.9446,168.17,168.14,0.04054217]
[1747701711257,0.0376699,168.18,168.14,0.04054217]
[1747701711965,5.9818699,168.18,168.14,5.98584217]
[1747701712267,0.0376699,168.18,168.14,0.04054217]
[1747701712565,5.9446,168.17,168.14,0.04054217]
[1747701712766,0.0376699,168.18,168.14,0.04054217]
[1747701713166,0.0376699,168.18,168.15,5.9447]
[1747701713664,5.9816699,168.18,168.15,5.9447]
[1747701713865,5.9816699,168.18,168.14,0.04054217]
[1747701713866,0.0376699,168.18,168.14,0.04054217]
[1747701715170,5.9449,168.16,168.14,0.04054217]
[1747701717875,0.0376699,168.18,168.14,0.04054217]
[1747701718573,5.9449,168.16,168.14,0.04054217]
[1747701719065,0.0376699,168.18,168.14,0.04054217]
[1747701719573,0.0376699,168.18,168.14,5.98574217]
[1747701719768,5.9444,168.17,168.14,5.98574217]
[1747701719974,0.0376699,168.18,168.14,0.04054217]
[1747701720574,5.945,168.15,168.14,0.04054217]
[1747701721969,5.9462,168.12,168.07,72.5]
[1747701722275,72.5,168.16,168.08,5.9474]
[1747701722472,5.9463,168.12,168.08,5.9474]
[1747701722670,4.078,168.15,168.07,72.5]
[1747701722878,4.078,168.15,168.07,78.4477]
[1747701723176,0.03879471,168.13,168.09,0.03765414]
[1747701725474,5.9468,168.1,168.09,0.03765414]
[1747701725870,0.03879471,168.13,168.09,0.03765414]
[1747701726177,5.9466,168.11,168.09,0.03765414]
[1747701726377,0.03879471,168.13,168.09,0.03765414]
[1747701727278,5.98479471,168.13,168.1,5.9465]
[1747701727779,0.03879471,168.13,168.09,0.03765414]
[1747701729677,5.9467,168.11,168.09,0.03765414]
[1747701730584,5.9468,168.1,168.09,0.03765414]
[1747701736685,5.94,168.1,167.99,2.22856862]
[1747701736891,6.36600564,168.08,167.99,2.22856862]
[1747701737391,6.36600564,168.08,167.96,2.97203989]
[1747701737392,6.36600564,168.02,167.96,2.97203989]
[1747701737589,72.52,168.01,167.96,2.97203989]
[1747701737792,72.56475407,168.01,167.97,0.03442847]
[1747701737988,0.04475407,168.01,167.97,0.03442847]
[1747701739189,6.41075971,168.01,167.97,0.03442847]
[1747701739590,72.54,168.0,167.97,0.03442847]
[1747701740002,5.951,167.99,167.97,0.03442847]
[1747701740196,72.54,168.0,167.97,0.03442847]
[1747701740702,5.951,167.98,167.97,0.03442847]
[1747701741099,5.9508,167.99,167.97,0.03442847]
[1747701741804,78.4903,168.0,167.97,0.03442847]
[1747701742302,5.9508,167.99,167.97,0.03442847]
[1747701742699,72.54,168.0,167.97,0.03442847]
[1747701743005,5.951,167.98,167.97,0.03442847]
[1747701743804,72.54,168.0,167.97,0.03442847]
[1747701744197,5.951,167.98,167.97,0.03442847]
[1747701744391,6.36600564,167.98,167.84,6.36600564]
[1747701744593,6.36600564,167.98,167.88,5.9545]
[1747701744594,2.0069,167.97,167.88,5.9545]
[1747701744796,6.36600564,167.95,167.86,72.54]
[1747701745001,72.56,167.94,167.84,6.0733]
[1747701745499,72.56,167.94,167.8,4.45898244]
[1747701745500,0.04108984,167.91,167.8,4.45898244]
[1747701745803,0.0387011,167.87,167.82,5.9564]
[1747701746702,0.0387011,167.87,167.81,5.957]
[1747701746904,5.9553,167.86,167.81,5.957]
[1747701747106,0.0387011,167.87,167.8,72.56]
[1747701747401,0.0387011,167.87,167.8,5.9573]
[1747701747600,0.0387011,167.87,167.78,5.06073989]
[1747701747797,5.9564,167.83,167.79,5.9577]
[1747701748004,0.04545602,167.83,167.78,2.97203989]
[1747701749005,0.04545602,167.83,167.78,5.9581]
[1747701749197,0.04545602,167.83,167.76,72.56]
[1747701749606,6.00185602,167.83,167.78,5.9581]
[1747701749905,0.04545602,167.83,167.76,72.56]
[1747701750204,5.9574,167.81,167.76,78.5185]
[1747701750507,0.04545602,167.83,167.72,80.44420564]
[1747701750705,0.04545602,167.83,167.74,5.9592]
[1747701750706,6.00086337,167.79,167.74,5.9592]
[1747701751201,5.9585,167.77,167.72,80.0382]
[1747701751400,72.24306337,167.79,167.72,1.8982]
[1747701751898,72.24306337,167.79,167.71,7.9161]
[1747701752095,72.24306337,167.79,167.68,72.2]
[1747701752300,0.03884863,167.75,167.67,6.78873989]
[1747701752597,72.2,167.74,167.69,5.9612]
[1747701752799,72.2,167.74,167.67,2.97203989]
[1747701753304,6.36600564,167.72,167.62,3.8167]
[1747701753511,5.962,167.68,167.63,5.9632]
[1747701753806,72.2,167.68,167.62,3.8167]
[1747701754611,72.2,167.68,167.66,5.9622]
[1747701755108,72.2,167.68,167.65,5.9627]
[1747701756804,72.2,167.68,167.66,5.9623]
[1747701757008,72.2,167.68,167.61,1.9904]
[1747701757202,72.2,167.68,167.62,5.9638]
[1747701757405,5.9628,167.65,167.58,4.0191]
[1747701757604,0.04093457,167.63,167.58,4.0191]
[1747701757805,0.04093457,167.63,167.6,5.9645]
[1747701758208,0.04093457,167.63,167.56,1.9125]
[1747701759307,0.04093457,167.63,167.61,5.9639]
[1747701759615,0.04093457,167.63,167.56,1.9125]
[1747701760309,0.04093457,167.63,167.62,5.9638]
[1747701760712,72.28,167.69,167.56,12.15821799]
[1747701761911,0.03881558,167.64,167.61,0.0418303]
[1747701762306,0.03881558,167.64,167.63,5.9634]
[1747701762920,0.03881558,167.64,167.61,0.0418303]
[1747701763519,5.9635,167.63,167.61,0.0418303]
[1747701763722,0.03881558,167.64,167.61,0.0418303]
[1747701765013,6.00201558,167.64,167.61,0.0418303]
[1747701765318,0.03881558,167.64,167.61,0.0418303]
[1747701766011,5.9634,167.63,167.61,0.0418303]
[1747701766219,0.03881558,167.64,167.61,0.0418303]
[1747701766622,0.03881558,167.64,167.61,6.0058303]
[1747701767023,0.03881558,167.64,167.61,0.0418303]
[1747701767817,5.9637,167.63,167.61,0.0418303]
[1747701768224,0.03881558,167.64,167.61,6.0057303]
[1747701768617,0.03881558,167.64,167.61,0.0418303]
[1747701769017,5.9638,167.62,167.61,0.0418303]
[1747701769925,5.9638,167.62,167.54,3.9175]
[1747701769926,5.9654,167.58,167.54,1.9927]
[1747701770118,72.3,167.59,167.53,5.9669]
[1747701770319,72.3,167.59,167.51,72.3]
[1747701770519,5.9664,167.55,167.47,74.3004]
[1747701770718,5.9664,167.55,167.5,5.9678]
[1747701770911,0.04255229,167.54,167.47,2.0004]
[1747701771117,72.34255229,167.54,167.46,3.9651]
[1747701771313,72.34255229,167.54,167.44,72.3]
[1747701771519,2.065,167.53,167.4,78.3631]
[1747701771718,2.065,167.53,167.43,5.9705]
[1747701771719,6.00812885,167.48,167.43,5.9705]
[1747701772016,0.03932885,167.48,167.4,78.3631]
[1747701772216,0.03932885,167.48,167.41,5.9712]
[1747701772415,0.03932885,167.48,167.4,76.3627]
[1747701772623,0.03932885,167.48,167.36,72.32]
[1747701772818,0.04429071,167.44,167.38,5.9722]
[1747701773022,0.04429071,167.44,167.36,72.32]
[1747701773222,72.32,167.51,167.39,10.24571799]
[1747701773425,72.32,167.56,167.43,10.24571799]
[1747701773625,4.1087,167.61,167.47,10.24571799]
[1747701773821,5.9645,167.6,167.54,5.9664]
[1747701774126,72.32,167.63,167.48,72.32]
[1747701774327,0.04220212,167.57,167.54,0.03884913]
[1747701774528,0.04220212,167.57,167.56,5.9658]
[1747701775634,74.4351,167.67,167.59,5.9645]
[1747701776125,74.4351,167.67,167.54,2.0803]
[1747701776629,0.04504466,167.62,167.59,0.04246008]
[1747701777623,0.04504466,167.62,167.61,5.9642]
[1747701777826,0.04504466,167.62,167.59,0.04246008]
[1747701778725,5.9642,167.61,167.59,0.04246008]
[1747701779226,6.00894466,167.62,167.59,0.04246008]
[1747701779633,0.04504466,167.62,167.59,0.04246008]
[1747701779932,0.04504466,167.62,167.6,5.9645]
[1747701780130,0.04504466,167.62,167.59,0.04246008]
[1747701781332,0.04504466,167.62,167.59,6.00706008]
[1747701781726,0.04504466,167.62,167.59,0.04246008]
[1747701782428,5.9645,167.61,167.59,0.04246008]
[1747701783435,5.9645,167.6,167.59,0.04246008]
[1747701785130,0.04504466,167.62,167.59,0.04246008]
[1747701785728,5.9645,167.6,167.59,0.04246008]
[1747701786432,5.9642,167.61,167.59,0.04246008]
[1747701786736,0.04504466,167.62,167.59,0.04246008]
[1747701787447,5.9645,167.6,167.59,0.04246008]
[1747701787635,0.04504466,167.62,167.59,0.04246008]
[1747701788935,5.9645,167.6,167.59,0.04246008]
[1747701791236,6.00914466,167.62,167.59,0.04246008]
[1747701791438,0.04504466,167.62,167.59,0.04246008]
[1747701793132,5.9645,167.6,167.59,0.04246008]
[1747701795136,0.04504466,167.62,167.53,72.0]
[1747701795439,72.0,167.63,167.49,590.55203989]
[1747701795631,1.9534,167.62,167.49,590.55203989]
[1747701795835,5.9663,167.55,167.52,5.9673]
[1747701796040,5.9663,167.55,167.49,590.55203989]
[1747701796241,0.04083309,167.54,167.51,0.04078057]
[1747701797246,0.04083309,167.54,167.51,2.11151395]
[1747701798446,0.04083309,167.54,167.52,2.07073338]
[1747701798848,72.02,167.61,167.52,2.07073338]
[1747701799048,72.02,167.61,167.52,4.02463338]
[1747701799744,72.02,167.65,167.52,4.02463338]
[1747701799949,0.04413203,167.61,167.58,6.00879397]
[1747701800251,0.04413203,167.61,167.58,0.04379397]
[1747701800548,72.02,167.69,167.58,0.04379397]
[1747701800847,72.02,167.69,167.63,5.9633]
[1747701801040,72.02,167.69,167.6,72.02]
[1747701801643,0.04327042,167.66,167.63,0.0403532]
[1747701801844,5.963,167.65,167.63,0.0403532]
[1747701802045,0.04327042,167.66,167.63,0.0403532]
[1747701802747,5.9631,167.64,167.63,0.0403532]